Workbook

Sheet main

Sheet sales
F1: Základní údaje o prodejích a provizích
A2: Datum | B2: Jméno | C2: Místo prodeje | D2: Počet zboží | E2: Tržba | F2: Provize (sazba) | G2: Provize (v měně)
A3: =TODAY()-50 -> 2013-04-17 | B3: Jan Novák | C3: Jihlava | D3: 12 | E3: 5523 | F3: =VLOOKUP(E3,$I$4:$K$6,3)+IF(D3>=12,$K$7,0) -> 0.15 | G3: 828 | I3: Provize z tržby
A4: =TODAY()-50 -> 2013-04-17 | B4: Petr Průbojný | C4: Ostrava | D4: 4 | E4: 7625 | F4: =VLOOKUP(E4,$I$4:$K$6,3)+IF(D4>=12,$K$7,0) -> 0.15 | G4: 1144 | I4: 0 | J4: 4999 | K4: 0
A5: =TODAY()-50 -> 2013-04-17 | B5: Daniel Neprodal | C5: Chomutov | D5: 7 | E5: 7735 | F5: 0.15 | G5: 1160 | I5: 5000 | J5: 7499 | K5: 0.1
A6: =TODAY()-49 -> 2013-04-18 | B6: Jan Novák | C6: Jihlava | D6: 14 | E6: 7646 | F6: 0.2 | G6: 1529 | I6: 7500 | J6: a více | K6: 0.15
A7: =TODAY()-48 -> 2013-04-19 | B7: Nikola Moudrá | C7: Brno | D7: 2 | E7: 3229 | F7: 0 | G7: 0 | I7: 12 | K7: 0.05
A8: =TODAY()-48 -> 2013-04-19 | B8: Petr Průbojný | C8: Jihlava | D8: 11 | E8: 9203 | F8: 0.15 | G8: 1380
A9: =TODAY()-48 -> 2013-04-19 | B9: Daniel Neprodal | C9: Ostrava | D9: 14 | E9: 2497 | F9: 0.05 | G9: 125 | I9: Převod měny
A10: =TODAY()-47 -> 2013-04-20 | B10: Jan Novák | C10: Chomutov | D10: 8 | E10: 4417 | F10: 0 | G10: 0 | I10: kurz USD (k 1.6.2013) | K10: 19.74
A11: =TODAY()-45 -> 2013-04-22 | B11: Daniel Neprodal | C11: Jihlava | D11: 9 | E11: 7017 | F11: 0.1 | G11: 702 | I11: kurz EUR (k 1.6.2013) | K11: 25.75
A12: =TODAY()-45 -> 2013-04-22 | B12: Nikola Moudrá | C12: Chomutov | D12: 10 | E12: 8844 | F12: 0.15 | G12: 1327
A13: =TODAY()-45 -> 2013-04-22 | B13: Petr Průbojný | C13: Jihlava | D13: 5 | E13: 7249 | F13: 0.1 | G13: 725
A14: =TODAY()-43 -> 2013-04-24 | B14: Jan Novák | C14: Brno | D14: 13 | E14: 3578 | F14: 0.05 | G14: 179
A15: =TODAY()-42 -> 2013-04-25 | B15: Daniel Neprodal | C15: Jihlava | D15: 12 | E15: 9499 | F15: 0.2 | G15: 1900 | I15: Vygenerovat nové tržby
A16: =TODAY()-41 -> 2013-04-26 | B16: Daniel Neprodal | C16: Chomutov | D16: 4 | E16: 1909 | F16: 0 | G16: 0
A17: =TODAY()-40 -> 2013-04-27 | B17: Radka Zasněná | C17: Brno | D17: 14 | E17: 4326 | F17: 0.05 | G17: 216
A18: =TODAY()-39 -> 2013-04-28 | B18: Jan Novák | C18: Ostrava | D18: 15 | E18: 6713 | F18: 0.15 | G18: 1007
A19: =TODAY()-39 -> 2013-04-28 | B19: Petr Průbojný | C19: Jihlava | D19: 11 | E19: 2525 | F19: 0 | G19: 0 | I19: Vytvořit kontingenční tabulku
A20: =TODAY()-37 -> 2013-04-30 | B20: Jan Novák | C20: Chomutov | D20: 13 | E20: 2074 | F20: 0.05 | G20: 104
A21: =TODAY()-37 -> 2013-04-30 | B21: Nikola Moudrá | C21: Brno | D21: 12 | E21: 2851 | F21: 0.05 | G21: 143
A22: =TODAY()-36 -> 2013-05-01 | B22: Nikola Moudrá | C22: Liberec | D22: 15 | E22: 9382 | F22: 0.2 | G22: 1876
A23: =TODAY()-35 -> 2013-05-02 | B23: Jan Novák | C23: Jihlava | D23: 4 | E23: 6231 | F23: 0.1 | G23: 623 | I23: Vytvořit graf
A24: =TODAY()-33 -> 2013-05-04 | B24: Petr Průbojný | C24: Ostrava | D24: 15 | E24: 3733 | F24: 0.05 | G24: 187
A25: =TODAY()-32 -> 2013-05-05 | B25: Radka Zasněná | C25: Liberec | D25: 9 | E25: 5479 | F25: 0.1 | G25: 548
A26: =TODAY()-31 -> 2013-05-06 | B26: Daniel Neprodal | C26: Liberec | D26: 6 | E26: 2267 | F26: 0 | G26: 0
A27: =TODAY()-30 -> 2013-05-07 | B27: Jan Novák | C27: Brno | D27: 3 | E27: 5424 | F27: 0.1 | G27: 542
A28: =TODAY()-30 -> 2013-05-07 | B28: Petr Průbojný | C28: Ostrava | D28: 5 | E28: 8308 | F28: 0.15 | G28: 1246
A29: =TODAY()-30 -> 2013-05-07 | B29: Daniel Neprodal | C29: Jihlava | D29: 13 | E29: 5676 | F29: 0.15 | G29: 851
A30: =TODAY()-29 -> 2013-05-08 | B30: Radka Zasněná | C30: Chomutov | D30: 4 | E30: 3766 | F30: 0 | G30: 0
A31: =TODAY()-28 -> 2013-05-09 | B31: Petr Průbojný | C31: Brno | D31: 3 | E31: 4302 | F31: 0 | G31: 0
A32: =TODAY()-27 -> 2013-05-10 | B32: Daniel Neprodal | C32: Chomutov | D32: 8 | E32: 4216 | F32: 0 | G32: 0
A33: =TODAY()-27 -> 2013-05-10 | B33: Jan Novák | C33: Jihlava | D33: 2 | E33: 7380 | F33: 0.1 | G33: 738
A34: =TODAY()-26 -> 2013-05-11 | B34: Petr Průbojný | C34: Ostrava | D34: 15 | E34: 9634 | F34: 0.2 | G34: 1927
A35: =TODAY()-25 -> 2013-05-12 | B35: Daniel Neprodal | C35: Liberec | D35: 13 | E35: 8446 | F35: 0.2 | G35: 1689
A36: =TODAY()-25 -> 2013-05-12 | B36: Nikola Moudrá | C36: Brno | D36: 6 | E36: 7691 | F36: 0.15 | G36: 1154
A37: =TODAY()-24 -> 2013-05-13 | B37: Jan Novák | C37: Jihlava | D37: 9 | E37: 8030 | F37: 0.15 | G37: 1205
A38: =TODAY()-24 -> 2013-05-13 | B38: Petr Průbojný | C38: Ostrava | D38: 10 | E38: 3367 | F38: 0 | G38: 0
A39: =TODAY()-24 -> 2013-05-13 | B39: Jan Novák | C39: Jihlava | D39: 3 | E39: 1103 | F39: 0 | G39: 0
A40: =TODAY()-23 -> 2013-05-14 | B40: Petr Průbojný | C40: Ostrava | D40: 14 | E40: 8673 | F40: 0.2 | G40: 1735
A41: =TODAY()-23 -> 2013-05-14 | B41: Daniel Neprodal | C41: Chomutov | D41: 1 | E41: 2752 | F41: 0 | G41: 0
A42: =TODAY()-21 -> 2013-05-16 | B42: Jan Novák | C42: Chomutov | D42: 5 | E42: 9481 | F42: 0.15 | G42: 1422
A43: =TODAY()-20 -> 2013-05-17 | B43: Nikola Moudrá | C43: Brno | D43: 7 | E43: 6814 | F43: 0.1 | G43: 681
A44: =TODAY()-19 -> 2013-05-18 | B44: Daniel Neprodal | C44: Ostrava | D44: 4 | E44: 5572 | F44: 0.1 | G44: 557
A45: =TODAY()-19 -> 2013-05-18 | B45: Nikola Moudrá | C45: Jihlava | D45: 14 | E45: 2122 | F45: 0.05 | G45: 106
A46: =TODAY()-18 -> 2013-05-19 | B46: Radka Zasněná | C46: Chomutov | D46: 7 | E46: 3632 | F46: 0 | G46: 0
A47: =TODAY()-17 -> 2013-05-20 | B47: Daniel Neprodal | C47: Brno | D47: 9 | E47: 9276 | F47: 0.15 | G47: 1391
A48: =TODAY()-15 -> 2013-05-22 | B48: Nikola Moudrá | C48: Brno | D48: 2 | E48: 1398 | F48: 0 | G48: 0
A49: =TODAY()-15 -> 2013-05-22 | B49: Jan Novák | C49: Jihlava | D49: 13 | E49: 7957 | F49: 0.2 | G49: 1591
A50: =TODAY()-14 -> 2013-05-23 | B50: Petr Průbojný | C50: Ostrava | D50: 4 | E50: 4945 | F50: 0 | G50: 0
A51: =TODAY()-12 -> 2013-05-25 | B51: Nikola Moudrá | C51: Brno | D51: 13 | E51: 6424 | F51: 0.15 | G51: 964
A52: =TODAY()-12 -> 2013-05-25 | B52: Petr Průbojný | C52: Ostrava | D52: 6 | E52: 9310 | F52: 0.15 | G52: 1397
A53: =TODAY()-11 -> 2013-05-26 | B53: Daniel Neprodal | C53: Chomutov | D53: 2 | E53: 4093 | F53: 0 | G53: 0
A54: =TODAY()-10 -> 2013-05-27 | B54: Jan Novák | C54: Jihlava | D54: 1 | E54: 8220 | F54: 0.15 | G54: 1233
A55: =TODAY()-9 -> 2013-05-28 | B55: Petr Průbojný | C55: Chomutov | D55: 12 | E55: 2156 | F55: 0.05 | G55: 108
A56: =TODAY()-9 -> 2013-05-28 | B56: Nikola Moudrá | C56: Brno | D56: 10 | E56: 5965 | F56: 0.1 | G56: 597
A57: =TODAY()-9 -> 2013-05-28 | B57: Petr Průbojný | C57: Ostrava | D57: 14 | E57: 3106 | F57: 0.05 | G57: 155
A58: =TODAY()-8 -> 2013-05-29 | B58: Petr Průbojný | C58: Jihlava | D58: 1 | E58: 8070 | F58: 0.15 | G58: 1211
A59: =TODAY()-8 -> 2013-05-29 | B59: Daniel Neprodal | C59: Chomutov | D59: 3 | E59: 2070 | F59: 0 | G59: 0
A60: =TODAY()-7 -> 2013-05-30 | B60: Nikola Moudrá | C60: Brno | D60: 5 | E60: 2439 | F60: 0 | G60: 0
A61: =TODAY()-7 -> 2013-05-30 | B61: Daniel Neprodal | C61: Chomutov | D61: 12 | E61: 9022 | F61: 0.2 | G61: 1804
A62: =TODAY()-6 -> 2013-05-31 | B62: Radka Zasněná | C62: Liberec | D62: 11 | E62: 4407 | F62: 0 | G62: 0
A63: =TODAY()-5 -> 2013-06-01 | B63: Petr Průbojný | C63: Ostrava | D63: 1 | E63: 7292 | F63: 0.1 | G63: 729
A64: =TODAY()-5 -> 2013-06-01 | B64: Jan Novák | C64: Jihlava | D64: 4 | E64: 4542 | F64: 0 | G64: 0
A65: =TODAY()-5 -> 2013-06-01 | B65: Nikola Moudrá | C65: Chomutov | D65: 15 | E65: 5963 | F65: 0.15 | G65: 894
A66: =TODAY()-4 -> 2013-06-02 | B66: Petr Průbojný | C66: Brno | D66: 10 | E66: 6065 | F66: 0.1 | G66: 607
A67: =TODAY()-3 -> 2013-06-03 | B67: Daniel Neprodal | C67: Ostrava | D67: 8 | E67: 3008 | F67: 0 | G67: 0
A68: =TODAY()-2 -> 2013-06-04 | B68: Jan Novák | C68: Jihlava | D68: 3 | E68: 3365 | F68: =VLOOKUP(E68,$I$4:$K$6,3)+IF(D68>=12,$K$7,0) -> 0 | G68: 0
A69: =TODAY()-2 -> 2013-06-04 | B69: Petr Průbojný | C69: Chomutov | D69: 7 | E69: 6292 | F69: 0.1 | G69: 629
A70: =TODAY()-1 -> 2013-06-05 | B70: Nikola Moudrá | C70: Brno | D70: 7 | E70: 8264 | F70: 0.15 | G70: 1240
A71: =TODAY()-1 -> 2013-06-05 | B71: Petr Průbojný | C71: Ostrava | D71: 15 | E71: 7323 | F71: 0.15 | G71: 1098
A72: =TODAY()-1 -> 2013-06-05 | B72: Petr Průbojný | C72: Ostrava | D72: 4 | E72: 9705 | F72: 0.15 | G72: 1456

Sheet kontg
E1: Výsledky jednotlivých prodejců
B3: Součet z Tržba | C3: Popisky sloupců
B4: Popisky řádků | C4: Radka Zasněná | D4: Petr Průbojný | E4: Nikola Moudrá | F4: Jan Novák | G4: Daniel Neprodal | H4: Celkový součet
B5: Brno | C5: 4326 | D5: 10367 | E5: 45075 | F5: 9002 | G5: 9276 | H5: 78046
B6: 14 | C6: 4326 | H6: 4326
B7: 13 | E7: 6424 | F7: 3578 | H7: 10002
B8: 12 | E8: 2851 | H8: 2851
B9: 10 | D9: 6065 | E9: 5965 | H9: 12030
B10: 9 | G10: 9276 | H10: 9276
B11: 7 | E11: 15078 | H11: 15078
B12: 6 | E12: 7691 | H12: 7691
B13: 5 | E13: 2439 | H13: 2439
B14: 3 | D14: 4302 | F14: 5424 | H14: 9726
B15: 2 | E15: 4627 | H15: 4627
B16: Chomutov | C16: 7398 | D16: 8448 | E16: 14807 | F16: 15972 | G16: 31797 | H16: 78422
B17: 15 | E17: 5963 | H17: 5963
B18: 13 | F18: 2074 | H18: 2074
B19: 12 | D19: 2156 | G19: 9022 | H19: 11178
B20: 10 | E20: 8844 | H20: 8844
B21: 8 | F21: 4417 | G21: 4216 | H21: 8633
B22: 7 | C22: 3632 | D22: 6292 | G22: 7735 | H22: 17659
B23: 5 | F23: 9481 | H23: 9481
B24: 4 | C24: 3766 | G24: 1909 | H24: 5675
B25: 3 | G25: 2070 | H25: 2070
B26: 2 | G26: 4093 | H26: 4093
B27: 1 | G27: 2752 | H27: 2752
B28: Jihlava | D28: 27047 | E28: 2122 | F28: 59997 | G28: 22192 | H28: 111358
B29: 14 | E29: 2122 | F29: 7646 | H29: 9768
B30: 13 | F30: 7957 | G30: 5676 | H30: 13633
B31: 12 | F31: 5523 | G31: 9499 | H31: 15022
B32: 11 | D32: 11728 | H32: 11728
B33: 9 | F33: 8030 | G33: 7017 | H33: 15047
B34: 5 | D34: 7249 | H34: 7249
B35: 4 | F35: 10773 | H35: 10773
B36: 3 | F36: 4468 | H36: 4468
B37: 2 | F37: 7380 | H37: 7380
B38: 1 | D38: 8070 | F38: 8220 | H38: 16290
B39: Liberec | C39: 9886 | E39: 9382 | G39: 10713 | H39: 29981
B40: 15 | E40: 9382 | H40: 9382
B41: 13 | G41: 8446 | H41: 8446
B42: 11 | C42: 4407 | H42: 4407
B43: 9 | C43: 5479 | H43: 5479
B44: 6 | G44: 2267 | H44: 2267
B45: Ostrava | D45: 83021 | F45: 6713 | G45: 11077 | H45: 100811
B46: 15 | D46: 20690 | F46: 6713 | H46: 27403
B47: 14 | D47: 11779 | G47: 2497 | H47: 14276
B48: 10 | D48: 3367 | H48: 3367
B49: 8 | G49: 3008 | H49: 3008
B50: 6 | D50: 9310 | H50: 9310
B51: 5 | D51: 8308 | H51: 8308
B52: 4 | D52: 22275 | G52: 5572 | H52: 27847
B53: 1 | D53: 7292 | H53: 7292
B54: Celkový součet | C54: 21610 | D54: 128883 | E54: 71386 | F54: 91684 | G54: 85055 | H54: 398618

Sheet graf

Sheet prognoza
E1: Vývoj prodejů a budoucích investic
B4: Předpoklad prodeje
B5: Měsíc | C5: 1 | D5: 2 | E5: 3 | F5: 4 | G5: 5 | H5: 6 | I5: 7 | J5: 8 | K5: 9 | L5: 10 | M5: 11 | N5: 12
B6: Oslovených lidí | C6: 620 | D6: 482 | E6: 320 | F6: 382 | G6: 640 | H6: 682 | I6: 480 | J6: 420 | K6: 645 | L6: 421 | M6: 420 | N6: 654
B7: Počet prodejů | C7: 45 | D7: 39 | E7: 28 | F7: 32 | G7: 46 | H7: 54 | I7: 38 | J7: 33 | K7: 55 | L7: 38 | M7: 48 | N7: 61
B8: Úspěšnost | C8: =C7/C6 -> 0.07258064516 | D8: =D7/D6 -> 0.08091286307 | E8: 0.0875 | F8: 0.08376963351 | G8: 0.071875 | H8: 0.07917888563 | I8: 0.07916666667 | J8: 0.07857142857 | K8: 0.08527131783 | L8: 0.09026128266 | M8: 0.1142857143 | N8: 0.09327217125
B11: Počet oslovených lidí | D11: 250 | E11: 500 | F11: 750 | G11: 1000
B12: Počet uskutečněných prodejů | D12: =FLOOR(FORECAST(D11,$C$7:$N$7,$C$6:$N$6),1) -> 24 | E12: =FLOOR(FORECAST(E11,$C$7:$N$7,$C$6:$N$6),1) -> 42 | F12: 59 | G12: 76
B13: Úspěšnost oslovení | D13: =D12/D11 -> 0.096 | E13: =E12/E11 -> 0.084 | F13: 0.07866666667 | G13: 0.076
B17: Rozhodování o půjčce | I17: Váš součásný produkt | M17: Chci toto změnit
B18: Var. A - nižší úrok | D18: Var. B - vyšší úrok | F18: Var. C - omez. platba | I18: Půjčka | K18: 200000 | L18: =I21 -> Měsíční platba
B19: Celková půjčka | C19: 1200000 | D19: Celková půjčka | E19: 1200000 | F19: Celková půjčka | G19: 1200000 | I19: Úrok u banky | K19: 0.06 | L19: =I20 -> Počet měsíčních splátek
B20: Úrok v bance | C20: 0.068 | D20: Úrok v bance | E20: 0.082 | F20: Úrok v bance | G20: 0.082 | I20: Počet měsíčních splátek | K20: 60 | L20: =I23 -> Budoucí hodnota (spořící) | O20: 1
B21: Počet splátek | C21: 60 | D21: Počet splátek | E21: 48 | F21: Platba omezená | G21: 28000 | I21: Měsíční platba | K21: 1500 | L21: =I18 -> Půjčka
B22: Platba měsíčně | C22: =PMT(C20/12,C21,C19) -> -23648.36907 | D22: Platba měsíčně | E22: =PMT(E20/12,E21,E19) -> -29408.29394 | F22: Splátek celkem | G22: =NPER(G20/12,-G21,G19) -> 50.88368499 | I22: Úrok spoření (spořící) | K22: 0.03
B23: Vrátíme bance | C23: =C22*C21 -> -1418902.144 | D23: Vrátíme bance | E23: =E22*E21 -> -1411598.109 | F23: Vrátíme bance | G23: =G22*G21 -> 1424743.18 | I23: Budoucí hodnota (spořící) | K23: 2000000 | M23: Zadejte novou hodnotu
B24: Přeplatíme o | C24: =-C19-C23 -> 218902.1439 | D24: Přeplatíme o | E24: =-E19-E23 -> 211598.1093 | F24: Přeplatíme o | G24: =G23-G19 -> 224743.1798 | M24: 0
I26: Platba | J26: Celkem | M26: Jaké bude toto po změně
I27: =PMT(K19/12,K20,K18) -> -3866.560306 | J27: =I27*K20 -> -231993.6184
B28: Rozhodování o úschově volných finančních prostředků | O28: 1
B29: Var. A - jednorázově | D29: Var. B - stálá ú.s. | F29: Var. C - proměnlivá ú.s. | I29: Budhodnota | J29: Bez úročení
B30: Jednorázově | C30: 300000 | D30: Jednorázově | E30: 300000 | F30: Měsíčně | G30: 1500 | I30: =FV(K22/12,K20,-K21) -> 96970.06893 | J30: =K21*K20 -> 90000
B31: Měsíčně | C31: 1500 | D31: Měsíčně | E31: 1500 | F31: Úrok fix | G31: 0.032
B32: Úrok spořící | C32: 0.03 | D32: Úrok spořící | E32: 0.03 | F32: Úrok poté | G32: 0.027 | I32: Počet.období | J32: Celkem
B33: Počet let | C33: 5 | D33: Počet let | E33: 5 | F33: Počet let | G33: 5 | I33: =NPER(K19/12,-K21,K18) -> 220.2713073 | J33: =I33*K21 -> 330406.9609
B34: Budhodnota | C34: =FV(C32/12,C33*12,,-C30) -> 348485.0345 | D34: Budhodnota | E34: =FV(E32/12,E33*12,-E31) -> 96970.06893 | F34: Budhodnota | G34: =FV(G32/12,2*12,-G30,-FV(G31/12,3*12,-G30)) -> 96681.60391
B35: Bez úročení | C35: =C30 -> 300000 | D35: Bez úročení | E35: =E31*E33*12 -> 90000 | F35: Bez úročení | G35: =G30*G33*12 -> 90000 | I35: Budhodnota | J35: Bez úročení
B36: Rozdíl | C36: =C34-C35 -> 48485.03447 | D36: Rozdíl | E36: =E34-E35 -> 6970.068933 | F36: Rozdíl | G36: =G34-G35 -> 6681.603911 | I36: =FV(K19/12,K20,-K21) -> 104655.0458 | J36: =K27*K26 -> 0
B40: Rozhodování o využítí úvěru k investici (nákup budovy - školící centrum)
B41: Výše půjčky | C41: Úrok u různých bank | H41: Úrok u ostatních finančních institucích
B42: =-PMT(K19/12,K20,K18) -> 3866.560306 | C42: 0.0299 | D42: 0.0325 | E42: 0.0339 | F42: 0.0349 | G42: 0.0364 | H42: 0.0406 | I42: 0.0419 | J42: 0.0459 | K42: 0.0478 | L42: 0.0485 | M42: 0.0499
B43: 1000000 | C43: 17964.24717 | D43: 18080.00231 | E43: 18142.52512 | F43: 18187.26699 | G43: 18254.50901 | H43: 18443.61095 | I43: 18502.38851 | J43: 18683.97119 | K43: 18770.60794 | L43: 18802.5892 | M43: 18866.65255
B44: 1100000 | C44: 19760.67188 | D44: 19888.00254 | E44: 19956.77763 | F44: 20005.99369 | G44: 20079.95991 | H44: 20287.97205 | I44: 20352.62736 | J44: 20552.36831 | K44: 20647.66873 | L44: 20682.84812 | M44: 20753.3178
B45: 1200000 | C45: 21557.0966 | D45: 21696.00277 | E45: 21771.03014 | F45: 21824.72039 | G45: 21905.41081 | H45: 22132.33314 | I45: 22202.86621 | J45: 22420.76543 | K45: 22524.72953 | L45: 22563.10703 | M45: 22639.98306
B46: 1300000 | C46: 23353.52132 | D46: 23504.003 | E46: 23585.28265 | F46: 23643.44709 | G46: 23730.86171 | H46: 23976.69424 | I46: 24053.10506 | J46: 24289.16255 | K46: 24401.79032 | L46: 24443.36595 | M46: 24526.64831
B47: 1400000 | C47: 25149.94603 | D47: 25312.00323 | E47: 25399.53517 | F47: 25462.17379 | G47: 25556.31261 | H47: 25821.05533 | I47: 25903.34391 | J47: 26157.55967 | K47: 26278.85111 | L47: 26323.62487 | M47: 26413.31357
B48: 1500000 | C48: 26946.37075 | D48: 27120.00347 | E48: 27213.78768 | F48: 27280.90049 | G48: 27381.76351 | H48: 27665.41643 | I48: 27753.58276 | J48: 28025.95679 | K48: 28155.91191 | L48: 28203.88379 | M48: 28299.97882
B49: 1600000 | C49: 28742.79547 | D49: 28928.0037 | E49: 29028.04019 | F49: 29099.62719 | G49: 29207.21441 | H49: 29509.77752 | I49: 29603.82162 | J49: 29894.3539 | K49: 30032.9727 | L49: 30084.14271 | M49: 30186.64408
B50: 1700000 | C50: 30539.22018 | D50: 30736.00393 | E50: 30842.2927 | F50: 30918.35389 | G50: 31032.66532 | H50: 31354.13862 | I50: 31454.06047 | J50: 31762.75102 | K50: 31910.0335 | L50: 31964.40163 | M50: 32073.30933
B51: 1800000 | C51: 32335.6449 | D51: 32544.00416 | E51: 32656.54521 | F51: 32737.08059 | G51: 32858.11622 | H51: 33198.49971 | I51: 33304.29932 | J51: 33631.14814 | K51: 33787.09429 | L51: 33844.66055 | M51: 33959.97458
B52: 1900000 | C52: 34132.06962 | D52: 34352.00439 | E52: 34470.79773 | F52: 34555.80729 | G52: 34683.56712 | H52: 35042.86081 | I52: 35154.53817 | J52: 35499.54526 | K52: 35664.15508 | L52: 35724.91947 | M52: 35846.63984
B53: 2000000 | C53: 35928.49434 | D53: 36160.00462 | E53: 36285.05024 | F53: 36374.53398 | G53: 36509.01802 | H53: 36887.2219 | I53: 37004.77702 | J53: 37367.94238 | K53: 37541.21588 | L53: 37605.17839 | M53: 37733.30509

Sheet optimalizace
G1: Optimalizace plánu výroby reklamních předmětů u dceřinné společnosti
C4: Předmět | H4: Maximální množství | J4: Podmínky výroby
C5: Tričko s krátkým rukávem | D5: Polokošile s potiskem | E5: Dárkové ručníky | F5: Taška s logem firmy | G5: Reklamní stan
B6: Bavlna | C6: 1.254 | D6: 1.125 | E6: 0.785 | F6: 0.058 | G6: 0.012 | H6: 1500 | J6: =SUMPRODUCT(C6:G6,$C$11:$G$11) -> 325.453
B7: Polyester | C7: 0.125 | D7: 0.438 | E7: 0.028 | F7: 0.652 | G7: 5.871 | H7: 2500 | J7: =SUMPRODUCT(C7:G7,$C$11:$G$11) -> 1703.535
B8: Niť | C8: 0.287 | D8: 0.587 | E8: 0.158 | F8: 0.571 | G8: 1.587 | H8: 15000 | J8: 591.472
B9: Elastan | C9: 0.158 | D9: 0.589 | E9: 0 | F9: 0 | G9: 0 | H9: 300 | J9: 99.943
B10: Potisk | C10: 0.156 | D10: 0.275 | E10: 0.052 | F10: 0.201 | G10: 0.658 | H10: 500 | J10: 246.357
B11: Počet předmětů | C11: 10 | D11: 167 | E11: 150 | F11: 70 | G11: 269 | H11: ks | J11: Náklady celkem
B12: Výrobní cena | C12: 12 | D12: 85 | E12: 97 | F12: 30 | G12: 15 | H12: Kč/kus | J12: =SUMPRODUCT(C11:G11,C12:G12) -> 35000

Sheet rozpocet
H1: Rozpočet a pohledávky
B3: Roční rozpočet firmy za rok 2012
C4: Leden | D4: Únor | E4: Březen | F4: Duben | G4: Květen | H4: Červen | I4: Červenec | J4: Srpen | K4: Září | L4: Říjen | M4: Listopad | N4: Prosinec
B5: - Provozní výnosy | C5: 595195 | D5: 592514 | E5: 592568 | F5: 572552 | G5: 564779 | H5: 522627 | I5: 584628 | J5: 596245 | K5: 542890 | L5: 532874 | M5: 580685 | N5: 603895
B6: - Finanční výnosy | C6: 1873 | D6: 1747 | E6: 1223 | F6: 1483 | G6: 1675 | H6: 1851 | I6: 1089 | J6: 1905 | K6: 1050 | L6: 1010 | M6: 1236 | N6: 1504
B7: Výnosy celkem | C7: =SUM(C5:C6) -> 597068 | D7: =SUM(D5:D6) -> 594261 | E7: 593791 | F7: 574035 | G7: 566454 | H7: 524478 | I7: 585717 | J7: 598150 | K7: 543940 | L7: 533884 | M7: 581921 | N7: 605399
B8: - Pronájem budov | C8: 35900 | D8: 39500 | E8: 31200 | F8: 29500 | G8: 32100 | H8: 39200 | I8: 26300 | J8: 41707 | K8: 33682 | L8: 45674 | M8: 37686 | N8: 34294
B9: - Investice do budov | C9: 0 | D9: 0 | E9: 0 | F9: 30000 | G9: 30000 | H9: 30000 | I9: 50000 | J9: 50000 | K9: 50000 | L9: 50000 | M9: 50000 | N9: 50000
B10: - Externí školení | C10: 26000 | D10: 24000 | E10: 28000 | F10: 26000 | G10: 22000 | H10: 21000 | I10: 27000 | J10: 31000 | K10: 23000 | L10: 26000 | M10: 25000 | N10: 26000
B11: - Mzdové náklady | C11: 516698 | D11: 478706 | E11: 486859 | F11: 504709 | G11: 502564 | H11: 485365 | I11: 504383 | J11: 458340 | K11: 448951 | L11: 425863 | M11: 456832 | N11: 544807
B12: - Ostatná náklady | C12: 678 | D12: 1555 | E12: 1300 | F12: 240 | G12: 520 | H12: 1306 | I12: 734 | J12: 1857 | K12: 575 | L12: 179 | M12: 2782 | N12: 163
B13: Náklady celkem | C13: =SUM(C8:C12) -> 579276 | D13: =SUM(D8:D12) -> 543761 | E13: 547359 | F13: 590449 | G13: 587184 | H13: 576871 | I13: 608417 | J13: 582904 | K13: 556208 | L13: 547716 | M13: 572300 | N13: 655264
B14: Výsledek hosp. | C14: =C7-C13 -> 17792 | D14: =D7-D13 -> 50500 | E14: 46432 | F14: -16414 | G14: -20730 | H14: -52393 | I14: -22700 | J14: 15246 | K14: -12268 | L14: -13832 | M14: 9621 | N14: -49865
B18: Pohledávky včetně faktur nezaplacených
B19: Den vystavení | C19: Číslo faktury | D19: Společnost | F19: Doba splatnosti | G19: Splatné dne | H19: Částka
B20: =TODAY()-39 -> 2013-04-28 | C20: 131 | D20: Jakub s.r.o. | F20: 60 | G20: =B20+F20 -> 2013-06-27 | H20: 22244 | J20: Dnes je | K20: =TODAY() -> 2013-06-06 | L20: Den: | M20: =IF(WEEKDAY(K20,2)=1,"pondělí",IF(WEEKDAY(K20,2)=2,"úterý",IF(WEEKDAY(K20,2)=3,"středa",IF(WEEKDAY(K20,2)=4,"čtvrtek",IF(WEEKDAY(K20,2)=5,"pátek",IF(WEEKDAY(K20,2)=6,"sobota",IF(WEEKDAY(K20,2)=7,"neděle","neznámý den"))))))) -> čtvrtek
B21: 2013-04-28 | C21: 144 | D21: David s.r.o. | F21: 30 | G21: 2013-05-28 | H21: 29823 | J21: Počet nezaplacených faktur | M21: =COUNTIF($G$20:$G$35,"<"&$K$20) -> 7
B22: 2013-04-28 | C22: 119 | D22: Marek a.s. | F22: 30 | G22: 2013-05-28 | H22: 28801 | J22: Počet faktur s dnešní končící splatností | M22: =COUNTIF($G$20:$G$35,"="&$K$20) -> 1
B23: 2013-04-28 | C23: 105 | D23: Filip s.r.o. | F23: 60 | G23: 2013-06-27 | H23: 21460 | J23: Počet zbylých faktur | M23: =COUNTIF($G$20:$G$35,">"&$K$20) -> 8
B24: 2013-04-28 | C24: 116 | D24: David s.r.o. | F24: 60 | G24: 2013-06-27 | H24: 16178 | J24: Celková nezaplacená částka | M24: =SUM($H$20:$H$35) -> 339118
B25: 2013-04-28 | C25: 140 | D25: Tomáš s.r.o. | F25: 30 | G25: 2013-05-28 | H25: 15100 | J25: z toho faktury před splatností | M25: =SUMIF($G$20:$G$35,">"&$K$20,$H$20:$H$35) -> 174085
B26: 2013-04-28 | C26: 125 | D26: Honza s.r.o. | F26: 30 | G26: 2013-05-28 | H26: 22763 | J26: z toho faktury s dnešní splatností | M26: =SUMIF($G$20:$G$35,"="&$K$20,$H$20:$H$35) -> 15636
B27: 2013-04-28 | C27: 133 | D27: Vladimír s.r.o. | F27: 30 | G27: 2013-05-28 | H27: 22664 | J27: z toho faktury po splatnosti | M27: =SUMIF($G$20:$G$35,"<"&$K$20,$H$20:$H$35) -> 149397
B28: 2013-04-28 | C28: 109 | D28: David s.r.o. | F28: 30 | G28: 2013-05-28 | H28: 11384
B29: =TODAY()-35 -> 2013-05-02 | C29: 105 | D29: Filip s.r.o. | F29: 30 | G29: 2013-06-01 | H29: 18862
B30: =TODAY()-30 -> 2013-05-07 | C30: 125 | D30: Filip s.r.o. | F30: 30 | G30: 2013-06-06 | H30: 15636
B31: =TODAY()-28 -> 2013-05-09 | C31: 100 | D31: Honza s.r.o. | F31: 90 | G31: 2013-08-07 | H31: 11904
B32: =TODAY()-25 -> 2013-05-12 | C32: 123 | D32: Tomáš s.r.o. | F32: 30 | G32: 2013-06-11 | H32: 25685
B33: =TODAY()-25 -> 2013-05-12 | C33: 125 | D33: Honza s.r.o. | F33: 90 | G33: 2013-08-10 | H33: 25267
B34: =TODAY()-24 -> 2013-05-13 | C34: 121 | D34: Marek a.s. | F34: 60 | G34: 2013-07-12 | H34: 26902
B35: =TODAY()-21 -> 2013-05-16 | C35: 106 | D35: Jakub s.r.o. | F35: 60 | G35: 2013-07-15 | H35: 24445

Sheet zamestnanci
G1: Evidenční listy - zaměstnanci
B3: Zaměstnanci společnosti | E3: Jméno | F3: Příjmení | G3: Datum narození | H3: Věk | I3: Bydliště
B4: Daniel Neprodal | C4: 2011-01-01 | E4: =LEFT(B4,FIND(" ",B4)-1) -> Daniel | F4: =RIGHT(B4,LEN(B4)-FIND(" ",B4)) -> Neprodal | G4: 1984-08-12 | H4: =IF(MONTH($G4)>=MONTH(TODAY()),IF(DAY($G4)>DAY(TODAY()),YEAR(TODAY())-YEAR($G4)-1,YEAR(TODAY())-YEAR($G4)),YEAR(TODAY())-YEAR($G4)) -> 28 | I4: České Budejovice
B5: Jan Novák | C5: 2012-07-01 | E5: =LEFT(B5,FIND(" ",B5)-1) -> Jan | F5: =RIGHT(B5,LEN(B5)-FIND(" ",B5)) -> Novák | G5: 1987-08-12 | H5: =IF(MONTH($G5)>=MONTH(TODAY()),IF(DAY($G5)>DAY(TODAY()),YEAR(TODAY())-YEAR($G5)-1,YEAR(TODAY())-YEAR($G5)),YEAR(TODAY())-YEAR($G5)) -> 25 | I5: Protivín
B6: Nikola Moudrá | C6: 2010-06-01 | E6: Nikola | F6: Moudrá | G6: 1989-06-04 | H6: 24 | I6: Olomouc
B7: Petr Průbojný | C7: 2005-02-01 | E7: Petr | F7: Průbojný | G7: 1989-06-05 | H7: 24 | I7: Brno
B8: Radka Zasněná | C8: 2007-08-01 | E8: Radka | F8: Zasněná | G8: 1991-08-29 | H8: 21 | I8: Praha
B12: Docházka za měsíc květen
B13: Datum | C13: Den | D13: Kancelář | E13: Příchod | F13: Odchod | G13: Odpracoval
B14: 2013-05-01 | C14: =IF(WEEKDAY(B14,2)=1,"pondělí",IF(WEEKDAY(B14,2)=2,"úterý",IF(WEEKDAY(B14,2)=3,"středa",IF(WEEKDAY(B14,2)=4,"čtvrtek",IF(WEEKDAY(B14,2)=5,"pátek",IF(WEEKDAY(B14,2)=6,"sobota",IF(WEEKDAY(B14,2)=7,"neděle","neznámý den"))))))) -> středa | D14: Neprodal | E14: 08:10:00 | F14: 16:00:00 | G14: =IF(F14<E14,F14-E14+"24:00",F14-E14) -> 07:50:00
B15: 2013-05-02 | C15: =IF(WEEKDAY(B15,2)=1,"pondělí",IF(WEEKDAY(B15,2)=2,"úterý",IF(WEEKDAY(B15,2)=3,"středa",IF(WEEKDAY(B15,2)=4,"čtvrtek",IF(WEEKDAY(B15,2)=5,"pátek",IF(WEEKDAY(B15,2)=6,"sobota",IF(WEEKDAY(B15,2)=7,"neděle","neznámý den"))))))) -> čtvrtek | D15: Novák | E15: 08:37:00 | F15: 01:00:00 | G15: =IF(F15<E15,F15-E15+"24:00",F15-E15) -> 16:23:00
B16: 2013-05-03 | C16: pátek | D16: Moudrá | E16: 09:28:00 | F16: 17:30:00 | G16: =IF(F16<E16,F16-E16+"24:00",F16-E16) -> 08:02:00
B17: 2013-05-04 | C17: sobota | D17: Průbojný | E17: 10:53:00 | F17: 15:30:00 | G17: 04:37:00
B18: 2013-05-05 | C18: neděle
B19: 2013-05-06 | C19: pondělí | D19: Neprodal | E19: 08:45:00 | F19: 14:30:00 | G19: 05:45:00
B20: 2013-05-07 | C20: úterý | D20: Novák | E20: 09:54:00 | F20: 02:00:00 | G20: 16:06:00
B21: 2013-05-08 | C21: středa | D21: Moudrá | E21: 07:23:00 | F21: 14:20:00 | G21: 06:57:00
B22: 2013-05-09 | C22: čtvrtek | D22: Průbojný | E22: 08:20:00 | F22: 15:30:00 | G22: 07:10:00
B23: 2013-05-10 | C23: pátek | D23: Neprodal | E23: 07:10:00 | F23: 16:00:00 | G23: 08:50:00
B24: 2013-05-11 | C24: sobota | D24: Novák | E24: 08:15:00 | F24: 14:00:00 | G24: 05:45:00 | I24: Vyhledávání směny
B25: 2013-05-12 | C25: neděle
B26: 2013-05-13 | C26: pondělí | D26: Novák | E26: 07:25:00 | F26: 15:30:00 | G26: 08:05:00 | I26: Zadejte datum: | J26: 2013-07-07
B27: 2013-05-14 | C27: úterý | D27: Moudrá | E27: 08:54:00 | F27: 16:00:00 | G27: 07:06:00 | I27: Bude to: | J27: =VLOOKUP($J$26,$I$31:$K$44,2,FALSE) -> neděle
B28: 2013-05-15 | C28: středa | D28: Průbojný | E28: 07:25:00 | F28: 14:20:00 | G28: 06:55:00 | I28: Směnu má: | J28: =IF($J$27="neděle","Nikdo - nepracuje se",VLOOKUP($J$26,$I$31:$K$44,3,FALSE)) -> Nikdo - nepracuje se
B29: 2013-05-16 | C29: čtvrtek | D29: Neprodal | E29: 06:13:00 | F29: 15:30:00 | G29: 09:17:00
B30: 2013-05-17 | C30: pátek | D30: Novák | E30: 08:25:00 | F30: 16:00:00 | G30: 07:35:00 | I30: Datum | J30: Den | K30: Kancelář
B31: 2013-05-18 | C31: sobota | D31: Moudrá | E31: 08:48:00 | F31: 15:30:00 | G31: 06:42:00 | I31: 2013-07-01 | J31: =IF(WEEKDAY(I31,2)=1,"pondělí",IF(WEEKDAY(I31,2)=2,"úterý",IF(WEEKDAY(I31,2)=3,"středa",IF(WEEKDAY(I31,2)=4,"čtvrtek",IF(WEEKDAY(I31,2)=5,"pátek",IF(WEEKDAY(I31,2)=6,"sobota",IF(WEEKDAY(I31,2)=7,"neděle","neznámý den"))))))) -> pondělí | K31: Neprodal
B32: 2013-05-19 | C32: neděle | I32: 2013-07-02 | J32: =IF(WEEKDAY(I32,2)=1,"pondělí",IF(WEEKDAY(I32,2)=2,"úterý",IF(WEEKDAY(I32,2)=3,"středa",IF(WEEKDAY(I32,2)=4,"čtvrtek",IF(WEEKDAY(I32,2)=5,"pátek",IF(WEEKDAY(I32,2)=6,"sobota",IF(WEEKDAY(I32,2)=7,"neděle","neznámý den"))))))) -> úterý | K32: Novák
B33: 2013-05-20 | C33: pondělí | D33: Zasněná | E33: 08:35:00 | F33: 15:30:00 | G33: 06:55:00 | I33: 2013-07-03 | J33: středa | K33: Moudrá
B34: 2013-05-21 | C34: úterý | D34: Neprodal | E34: 07:35:00 | F34: 16:00:00 | G34: 08:25:00 | I34: 2013-07-04 | J34: čtvrtek | K34: Průbojný
B35: 2013-05-22 | C35: středa | D35: Průbojný | E35: 07:58:00 | F35: 15:00:00 | G35: 07:02:00 | I35: 2013-07-05 | J35: pátek | K35: Zasněná
B36: 2013-05-23 | C36: čtvrtek | D36: Zasněná | E36: 08:24:00 | F36: 15:00:00 | G36: 06:36:00 | I36: 2013-07-06 | J36: sobota | K36: Neprodal
B37: 2013-05-24 | C37: pátek | D37: Neprodal | E37: 08:54:00 | F37: 14:20:00 | G37: 05:26:00 | I37: 2013-07-07 | J37: neděle
B38: 2013-05-25 | C38: sobota | D38: Moudrá | E38: 07:46:00 | F38: 15:30:00 | G38: 07:44:00 | I38: 2013-07-08 | J38: pondělí | K38: Moudrá
B39: 2013-05-26 | C39: neděle | I39: 2013-07-09 | J39: úterý | K39: Průbojný
B40: 2013-05-27 | C40: pondělí | D40: Zasněná | E40: 08:14:00 | F40: 14:00:00 | G40: 05:46:00 | I40: 2013-07-10 | J40: středa | K40: Neprodal
B41: 2013-05-28 | C41: úterý | D41: Neprodal | E41: 08:35:00 | F41: 14:20:00 | G41: 05:45:00 | I41: 2013-07-11 | J41: čtvrtek | K41: Novák
B42: 2013-05-29 | C42: středa | D42: Novák | E42: 08:14:00 | F42: 15:30:00 | G42: 07:16:00 | I42: 2013-07-12 | J42: pátek | K42: Neprodal
B43: 2013-05-30 | C43: čtvrtek | D43: Průbojný | E43: 08:56:00 | F43: 16:00:00 | G43: 07:04:00 | I43: 2013-07-13 | J43: sobota | K43: Novák
B44: 2013-05-31 | C44: pátek | D44: Zasněná | E44: 07:23:00 | F44: 15:00:00 | G44: 07:37:00 | I44: 2013-07-14 | J44: neděle
F45: Celkem | G45: =SUM(G14:G44) -> 8.695138889

Sheet spolecnost
